bitfinex/quotes_ETHUSD_20241022
["timestamp","ask_amount","ask_price","bid_price","bid_amount"]
[1729635759723,3.41341,2636.7,2636.4,0.7923]
[1729635759928,3.41341,2636.7,2636.4,1.04499659]
[1729635761381,3.41341,2636.7,2636.4,0.7923]
[1729635761586,3.41348,2636.6,2636.4,0.7923]
[1729635762566,3.41361,2636.5,2636.4,0.7923]
[1729635762774,3.41348,2636.6,2636.4,0.7923]
[1729635763861,3.41361,2636.5,2636.4,0.7923]
[1729635764953,8.48568982,2636.7,2636.4,0.7923]
[1729635766088,3.41348,2636.6,2636.4,0.7923]
[1729635774664,6.82706,2636.6,2636.4,0.7923]
[1729635774863,3.41361,2636.5,2636.2,0.7923]
[1729635775069,3.414,2636.2,2635.9,0.79212484]
[1729635775421,3.414,2636.2,2635.8,6.65775466]
[1729635775713,3.414,2636.2,2635.8,4.99894484]
[1729635776409,3.414,2636.2,2635.8,6.65775466]
[1729635778108,3.41357,2636.6,2636.2,0.7923]
[1729635778308,6.82662,2636.8,2636.3,5.07266982]
[1729635778509,6.82662,2636.8,2636.3,1.65880982]
[1729635778510,3.41347,2636.7,2636.3,1.65880982]
[1729635778810,3.41347,2636.7,2636.3,0.67331344]
[1729635780333,3.4133,2636.8,2636.3,4.87928828]
[1729635780565,3.4133,2636.8,2636.3,4.08716344]
[1729635781560,3.41338,2636.7,2636.3,4.08716344]
[1729635783174,3.41323,2636.8,2636.3,5.82177675]
[1729635783408,6.82655,2636.8,2636.4,1.42319016]
[1729635785281,3.41323,2636.8,2636.4,4.83690016]
[1729635785779,3.41323,2636.8,2636.4,1.49904367]
[1729635787542,3.41302,2637.0,2636.5,1.65880982]
[1729635787749,3.41302,2637.0,2636.6,0.83764789]
[1729635788081,3.41302,2637.0,2636.6,3.23280898]
[1729635788264,3.41302,2637.0,2636.6,1.57399916]
[1729635788783,6.82559,2637.2,2636.6,6.64617898]
[1729635789235,3.41288,2637.1,2636.6,7.43830382]
[1729635789442,3.41288,2637.1,2636.6,4.98736916]
[1729635789690,3.41288,2637.1,2636.7,1.08518438]
[1729635790388,3.413,2637.0,2636.7,1.08518438]
[1729635790553,3.41288,2637.1,2636.7,1.08518438]
[1729635790750,3.41298,2637.0,2636.7,1.08518438]
[1729635791488,3.41288,2637.1,2636.7,1.08518438]
[1729635791691,6.82582,2637.1,2636.7,1.08518438]
[1729635791842,8.48462982,2637.1,2636.7,1.08518438]
[1729635792278,5.07168982,2637.1,2636.7,1.08518438]
[1729635792474,8.48462982,2637.1,2636.7,1.08518438]
[1729635793380,3.41297,2637.0,2636.7,1.08518438]
[1729635793565,5.07177982,2637.0,2636.6,0.7618]
[1729635793770,5.07177982,2637.0,2636.6,0.83764548]
[1729635794142,3.41297,2637.0,2636.6,0.83764548]
[1729635795862,3.41297,2637.0,2636.6,4.25112548]
[1729635796061,1.65880982,2637.1,2636.6,4.25112548]
[1729635796361,1.65880982,2637.1,2636.7,0.76646655]
[1729635796558,5.07168982,2637.1,2636.7,0.76646655]
[1729635797647,1.65880982,2637.0,2636.7,0.76646655]
[1729635798294,1.65880982,2637.1,2636.7,4.17981655]
[1729635798594,5.07151982,2637.3,2636.9,0.8193]
[1729635798948,8.48416982,2637.3,2636.9,0.8193]
[1729635799451,5.07151982,2637.2,2636.9,0.8193]
[1729635804691,1.65880982,2637.2,2636.9,0.8193]
[1729635804852,1.65880982,2637.2,2637.0,0.48100472]
[1729635805787,5.07153982,2637.2,2637.0,0.48100472]
[1729635806059,5.07153982,2637.2,2636.9,0.8193]
[1729635809072,1.65880982,2637.1,2636.9,0.8193]
[1729635809273,5.07153982,2637.2,2636.9,0.8193]
[1729635812498,3.41246,2637.4,2636.9,4.23237]
[1729635812685,1.65880982,2637.2,2637.0,0.48099573]
[1729635817813,4.24173,2637.5,2637.0,0.48099573]
[1729635818014,3.41233,2637.5,2637.1,3.48866353]
[1729635818225,3.41233,2637.5,2637.2,0.795]
[1729635818401,5.07113982,2637.5,2637.2,0.795]
[1729635820914,1.65880982,2637.4,2637.2,0.795]
[1729635821818,5.07139982,2637.3,2637.0,1.27599573]
[1729635821992,1.65880982,2637.1,2636.8,3.795]
[1729635822299,1.65880982,2637.0,2636.8,4.59504148]
[1729635822689,1.65880982,2637.1,2636.8,4.59504148]
[1729635822891,1.65880982,2637.1,2636.8,1.59504148]
[1729635824336,1.65880982,2637.1,2636.7,3.41326]
[1729635824536,1.65880982,2637.1,2636.7,4.20538484]
[1729635825141,1.65880982,2637.1,2636.7,7.61864484]
[1729635825303,1.65880982,2637.1,2636.8,3.4132]
[1729635826335,1.65880982,2637.1,2636.7,4.20538484]
[1729635827325,1.65880982,2637.1,2636.7,5.00038484]
[1729635827710,1.65880982,2637.1,2636.7,8.41366484]
[1729635829408,1.65880982,2637.1,2636.7,5.00038484]
[1729635830109,1.65880982,2637.1,2636.8,3.4132]
[1729635830909,1.65880982,2637.1,2636.7,5.00038484]
[1729635831112,1.65880982,2637.0,2636.7,5.00038484]
[1729635831309,1.65880982,2637.0,2636.7,6.25006925]
[1729635831507,1.65880982,2637.0,2636.7,9.66334925]
[1729635832471,1.65880982,2637.0,2636.7,6.25006925]
[1729635833447,1.65880982,2637.1,2636.7,6.25006925]
[1729635833636,1.65880982,2637.1,2636.8,0.79212484]
[1729635834771,1.65880982,2637.1,2636.8,4.20531484]
[1729635835068,1.65880982,2637.1,2636.8,2.16690038]
[1729635835373,1.65880982,2637.1,2636.8,0.79212484]
[1729635840254,1.65880982,2636.9,2636.7,0.79212484]
[1729635840783,1.65880982,2636.9,2636.6,0.79212484]
[1729635842060,5.07190982,2636.9,2636.6,0.79212484]
[1729635845145,1.65880982,2636.9,2636.6,0.79212484]
[1729635847891,5.07190982,2636.9,2636.5,4.20567484]
[1729635848602,3.4131,2636.9,2636.5,4.20567484]
[1729635848902,3.4131,2636.9,2636.5,0.79212484]
[1729635849195,5.07190982,2636.9,2636.5,0.79212484]
[1729635850302,5.07190982,2636.9,2636.6,0.79212484]
[1729635850452,5.07190982,2636.9,2636.5,0.79212484]
[1729635851799,3.4131,2636.9,2636.5,0.79212484]
[1729635852601,5.07190982,2636.9,2636.5,0.79212484]
[1729635858189,3.4131,2636.9,2636.5,0.79212484]
[1729635858502,4.17196,2637.0,2636.6,0.07584669]
[1729635858792,5.83076982,2637.0,2636.5,5.29722699]
[1729635859003,4.17196,2637.0,2636.5,5.29722699]
[1729635859180,4.17196,2637.0,2636.6,0.07584665]
[1729635863168,3.41296,2637.0,2636.6,0.07584665]
[1729635864865,3.41296,2637.0,2636.5,5.29722699]
[1729635865905,3.41296,2637.0,2636.6,0.07584676]
[1729635869219,3.41296,2637.0,2636.5,5.29722699]
[1729635869425,3.41296,2637.0,2636.6,0.07584684]
[1729635870679,3.41296,2637.0,2636.6,0.86797168]
[1729635871139,3.41296,2637.0,2636.6,0.07584684]
[1729635871336,2.42110982,2637.4,2636.7,0.833]
[1729635871540,5.07154982,2637.2,2636.8,0.79212484]
[1729635872639,1.65880982,2637.2,2636.8,0.79212484]
[1729635872841,1.65880982,2637.2,2636.8,1.99064095]
[1729635873236,1.65880982,2637.2,2636.8,1.19851611]
[1729635873237,5.07152982,2637.2,2636.8,1.19851611]
[1729635873575,1.65880982,2637.2,2636.8,1.99064095]
[1729635873809,1.65880982,2637.2,2636.8,5.40384095]
[1729635874279,5.07151982,2637.2,2636.8,1.99064095]
[1729635875459,3.41271,2637.2,2636.8,1.99064095]
[1729635875671,5.07151982,2637.2,2636.8,1.99064095]
[1729635880052,3.41271,2637.2,2636.8,1.99064095]
[1729635880306,5.07151982,2637.2,2636.8,1.99064095]
[1729635881860,3.41271,2637.2,2636.8,1.99064095]
[1729635882061,5.07151982,2637.2,2636.8,1.99064095]
[1729635882668,3.41239,2637.5,2637.0,0.7831]
[1729635883001,5.07134982,2637.4,2637.0,0.7831]
[1729635883877,1.65880982,2637.3,2637.0,0.7831]
[1729635887695,5.07134982,2637.4,2637.0,0.7831]
[1729635888291,5.07134982,2637.4,2637.0,1.48915867]
[1729635889094,1.65880982,2637.3,2637.0,1.48915867]
[1729635889703,5.07139982,2637.3,2637.0,1.48915867]
[1729635896085,1.65880982,2637.2,2637.0,1.48915867]
[1729635896288,5.07139982,2637.3,2637.0,1.48915867]
[1729635896487,5.07139982,2637.3,2637.0,0.7831]
[1729635900229,1.65880982,2637.3,2637.0,0.7831]
[1729635903223,1.65880982,2637.4,2637.0,4.19605]
[1729635903427,1.65880982,2637.4,2637.0,4.27188533]
[1729635903587,5.07125982,2637.4,2637.0,4.27188533]
[1729635903787,1.65880982,2637.3,2637.0,4.27188533]
[1729635904255,5.07125982,2637.4,2637.0,4.27188533]
[1729635904614,5.07125982,2637.4,2637.0,5.06401017]
[1729635904972,5.07125982,2637.4,2637.0,4.27188533]
[1729635905471,0.7731,2637.6,2637.1,3.41283]
[1729635905472,4.18535,2637.6,2637.1,3.41283]
[1729635905768,3.41232,2637.5,2637.1,3.4886621]
[1729635909551,4.1853,2637.6,2637.1,5.14740192]
[1729635909759,5.07100982,2637.6,2637.2,3.41269]
[1729635909943,5.07100982,2637.6,2637.2,4.49748131]
[1729635910119,1.65880982,2637.5,2637.2,4.49748131]
[1729635910459,5.07113982,2637.5,2637.2,1.08479131]
[1729635910668,1.65880982,2637.5,2637.2,1.08479131]
[1729635913270,5.07148982,2637.3,2637.0,0.79212484]
[1729635913590,1.65880982,2637.3,2636.9,4.20514484]
[1729635913881,1.65880982,2637.2,2636.9,4.20514484]
[1729635914290,1.65880982,2637.2,2636.9,5.75444717]
[1729635914449,1.65880982,2637.3,2636.9,5.75444717]
[1729635914649,5.07139982,2637.3,2636.9,5.75444717]
[1729635914870,1.65880982,2637.2,2636.9,2.34142717]
[1729635915287,1.65880982,2637.3,2637.0,0.79212484]
[1729635923386,0.8198,2637.4,2637.0,4.20507484]
[1729635923712,0.8198,2637.4,2637.0,5.91676465]
[1729635923713,2.47860982,2637.4,2637.0,5.91676465]
[1729635924182,1.65880982,2637.4,2637.1,0.79212484]
[1729635924590,1.65880982,2637.4,2637.0,5.99259977]
[1729635924785,1.65880982,2637.4,2637.0,5.91676465]
[1729635924991,1.65880982,2637.4,2637.0,5.99259977]
[1729635925278,1.65880982,2637.5,2637.1,2.00591075]
[1729635925477,1.65880982,2637.5,2637.1,2.79803559]
[1729635925677,1.65880982,2637.5,2637.1,2.00591075]
[1729635925678,5.07118982,2637.5,2637.1,2.00591075]
[1729635925911,1.65880982,2637.4,2637.1,2.00591075]
[1729635927173,5.07118982,2637.5,2637.1,2.00591075]
[1729635927374,3.41206,2637.7,2637.2,4.10963364]
[1729635927570,5.07086982,2637.7,2637.4,0.8153]
[1729635927769,1.65880982,2637.6,2637.4,0.8153]
[1729635931636,3.41206,2637.7,2637.4,0.8153]
[1729635931637,1.65880982,2637.5,2637.4,0.8153]
[1729635932331,5.07112982,2637.5,2637.4,0.04769529]
[1729635932539,5.07112982,2637.5,2637.1,0.79212484]
[1729635932842,1.65880982,2637.3,2637.1,0.79212484]
[1729635932989,2.43630982,2637.4,2637.2,0.04865354]
[1729635933932,5.07112982,2637.5,2637.2,0.04865354]
[1729635934493,3.41214,2637.7,2637.2,4.3293131]
[1729635934691,5.07094982,2637.7,2637.2,6.94981826]
[1729635935011,1.65880982,2637.6,2637.2,3.46128354]
[1729635935206,5.07094982,2637.7,2637.3,0.60301764]
[1729635935605,5.07094982,2637.7,2637.4,0.04865084]
[1729635936638,1.65880982,2637.6,2637.4,0.04865084]
[1729635939066,1.65880982,2637.5,2637.4,0.04865084]
[1729635939365,5.84862982,2637.5,2637.4,0.04865084]
[1729635939826,5.84862982,2637.5,2637.1,0.79212484]
[1729635940029,1.65880982,2637.4,2637.1,0.79212484]
[1729635940228,5.07127982,2637.4,2637.0,3.79212484]
[1729635940422,5.07127982,2637.4,2637.1,0.79212484]
[1729635941063,5.07127982,2637.4,2637.2,0.04698608]
[1729635942260,3.41271,2637.2,2637.0,1.55094893]
[1729635942482,3.41271,2637.2,2637.0,0.79212484]
[1729635942631,5.07137982,2637.4,2636.9,1.59832484]
[1729635942975,5.07137982,2637.4,2637.0,0.79212484]
[1729635943870,5.07137982,2637.4,2636.9,1.59832484]
[1729635944064,5.07137982,2637.4,2637.0,0.79212484]
[1729635946480,5.07137982,2637.4,2636.9,6.72827111]
[1729635946678,0.7775,2637.5,2637.0,3.41294]
[1729635946827,2.43630982,2637.5,2637.0,4.2808993]
[1729635947030,5.84865982,2637.5,2637.0,4.2808993]
[1729635947230,5.84865982,2637.5,2637.1,0.79921528]
[1729635948445,3.41249,2637.4,2637.1,0.79921528]
[1729635948836,5.84863982,2637.5,2637.1,0.79921528]
[1729635950837,5.84863982,2637.5,2637.1,1.59134012]
[1729635951040,5.84863982,2637.5,2637.1,0.79921528]
[1729635951241,4.18983,2637.5,2637.1,0.79921528]
[1729635953151,5.84863982,2637.5,2637.1,0.79921528]
[1729635953495,4.18983,2637.5,2637.1,0.79921528]
[1729635954553,5.84863982,2637.5,2637.1,0.79921528]
[1729635956061,5.84863982,2637.5,2637.2,0.04107214]
[1729635960184,3.41246,2637.4,2637.2,0.04107214]
[1729635960388,5.84863982,2637.5,2637.2,0.04107214]
[1729635960591,5.84865982,2637.5,2637.2,0.04107214]
[1729635960979,4.18985,2637.5,2637.2,0.04107214]
[1729635961792,3.41235,2637.5,2637.2,0.04107214]
[1729635963407,3.41245,2637.4,2637.2,0.04107214]
[1729635964513,5.07111982,2637.6,2637.2,0.04107214]
[1729635964514,3.41232,2637.5,2637.2,0.04107214]
[1729635966569,3.41252,2637.4,2637.2,0.04107214]
[1729635967017,3.41252,2637.4,2637.0,0.79212484]
[1729635967192,3.41252,2637.4,2637.3,0.04095858]
[1729635967377,3.41252,2637.4,2637.0,1.08878423]
[1729635967708,3.41252,2637.4,2637.1,0.0409808]
[1729635969007,5.07132982,2637.4,2637.1,0.0409808]
[1729635972215,3.41252,2637.4,2637.1,0.0409808]
[1729635972511,5.07132982,2637.4,2637.1,0.0409808]
[1729635972733,3.41252,2637.4,2637.1,0.0409808]
[1729635973573,5.07132982,2637.4,2637.1,0.0409808]
[1729635975112,3.41232,2637.5,2637.1,0.55067583]
[1729635975366,4.18639,2637.7,2637.2,0.804]
[1729635975515,3.41209,2637.7,2637.2,0.87983585]
[1729635975713,3.41209,2637.7,2637.3,0.26320762]
[1729635976205,5.07089982,2637.7,2637.3,0.26320762]
[1729635976441,5.07106982,2637.6,2637.3,0.26320762]
[1729635976752,1.65880982,2637.4,2637.3,0.04094397]
[1729635976914,5.07125982,2637.4,2637.3,0.04094397]
[1729635977249,3.41245,2637.4,2637.3,0.04094397]
[1729635977419,3.41245,2637.4,2637.0,0.79212484]
[1729635977745,3.41245,2637.4,2637.1,0.40616493]
[1729635977929,3.41245,2637.4,2637.2,0.04094532]
[1729635978340,3.41245,2637.4,2637.0,0.79212484]
[1729635978710,3.41245,2637.4,2637.1,0.04095643]
[1729635979763,3.41245,2637.4,2637.1,0.83308127]
[1729635979937,3.41245,2637.4,2637.1,0.04095643]
[1729635980775,3.41245,2637.4,2637.1,0.83308127]
[1729635980945,3.41245,2637.4,2637.1,0.04095643]
[1729635981949,4.18701,2637.2,2637.1,0.04095643]
[1729635982134,5.84581982,2637.2,2637.1,0.04095643]
[1729635982335,3.41297,2637.0,2636.7,0.79212484]
[1729635982582,3.41317,2636.9,2636.6,1.56112484]
[1729635983345,5.07177982,2637.0,2636.6,1.56112484]
[1729635983551,5.07177982,2637.0,2636.6,0.769]
[1729635984260,3.41297,2637.0,2636.6,0.769]
[1729635984467,3.41297,2637.0,2636.6,1.56112484]
[1729635984787,3.41297,2637.0,2636.6,0.769]
[1729635985158,3.41297,2637.0,2636.6,1.56112484]
[1729635985381,3.41297,2637.0,2636.6,0.769]
[1729635985964,3.41297,2637.0,2636.7,0.03833385]
[1729635989759,5.07171982,2637.1,2636.7,0.03833385]
[1729635990584,1.65880982,2637.1,2636.7,0.03833385]
[1729635990764,3.41298,2637.0,2636.7,0.03833385]
[1729635995077,5.07164982,2637.1,2636.7,0.03833385]
[1729635999080,3.41284,2637.1,2636.7,0.03833385]
[1729635999267,5.07164982,2637.1,2636.7,0.03833385]
[1729636002188,3.41284,2637.1,2636.7,0.03833385]
[1729636002785,5.07164982,2637.1,2636.7,0.03833385]
[1729636003306,1.65880982,2637.2,2636.8,0.7551]
[1729636003510,1.65880982,2637.4,2636.8,4.16825]
[1729636003712,1.65880982,2637.4,2636.9,0.03651166]
[1729636003972,1.65880982,2637.3,2636.9,0.03651166]
[1729636004283,5.07125982,2637.4,2636.9,0.99937788]
[1729636004813,1.65880982,2637.3,2636.9,0.99937788]
[1729636005175,1.65880982,2637.4,2637.0,0.7551]
[1729636005390,3.4124,2637.5,2637.0,0.7551]
[1729636005578,1.65880982,2637.4,2637.1,0.03648945]
[1729636006416,5.07126982,2637.4,2637.1,0.03648945]
[1729636006914,1.65880982,2637.3,2637.1,0.03648945]
[1729636007333,5.07139982,2637.3,2637.1,0.03648945]
[1729636007500,5.07151982,2637.2,2637.1,0.03648945]
[1729636007678,1.65880982,2637.2,2637.1,0.03648945]
[1729636007869,1.65880982,2637.3,2637.1,0.03648945]
[1729636009379,5.07139982,2637.3,2637.1,0.03648945]
[1729636012618,8.48404982,2637.3,2637.1,0.03648945]
[1729636012774,5.07139982,2637.3,2637.1,0.03648945]
[1729636014315,5.07151982,2637.2,2637.1,0.03648945]
[1729636021136,3.41271,2637.2,2637.1,0.03648945]
[1729636021625,5.07151982,2637.2,2637.1,0.03648945]
[1729636022739,3.41271,2637.2,2637.1,0.03648945]
[1729636024973,5.07151982,2637.2,2637.1,0.03648945]
[1729636029081,3.41259,2637.3,2637.1,0.03648945]
[1729636029252,6.82525,2637.3,2637.1,0.03648945]
[1729636029447,3.41259,2637.3,2637.1,0.03648945]
[1729636029851,6.82526,2637.3,2637.1,0.03648945]
[1729636030259,3.41259,2637.3,2637.1,0.03648945]
[1729636030634,6.82525,2637.3,2637.1,0.03648945]
[1729636030840,5.07139982,2637.3,2637.1,0.03648945]
[1729636031686,3.41259,2637.3,2637.1,0.03648945]
[1729636031942,8.48406982,2637.3,2637.1,0.03648945]
[1729636032927,5.07139982,2637.3,2637.1,0.03648945]
[1729636033132,8.48404982,2637.3,2637.1,0.03648945]
[1729636033336,5.07139982,2637.3,2637.1,0.03648945]
[1729636034631,8.48404982,2637.3,2637.1,0.03648945]
[1729636035197,5.07139982,2637.3,2637.1,0.03648945]
[1729636035438,3.41271,2637.2,2637.1,0.03648945]
[1729636040409,5.9199308,2637.2,2637.1,0.03648945]
[1729636040602,6.6904308,2637.2,2637.1,0.03648945]
[1729636040842,2.842316,2636.6,2636.5,0.79212484]
[1729636041053,3.41361,2636.5,2636.2,1.55922484]
[1729636041206,2.842316,2636.6,2636.2,1.55922484]
[1729636041407,2.842316,2636.6,2636.3,0.79212484]
[1729636041607,2.842316,2636.6,2636.2,1.55922484]
[1729636042349,4.50112582,2636.6,2636.2,1.55922484]
[1729636042649,7.91468582,2636.6,2636.2,1.55922484]
[1729636042955,3.41363,2636.5,2636.2,1.55922484]
[1729636043153,3.41363,2636.5,2636.2,0.7671]
[1729636048069,5.07243982,2636.5,2636.2,0.7671]
[1729636049274,1.65880982,2636.5,2636.2,0.7671]
[1729636049429,5.07228982,2636.6,2636.2,0.7671]
[1729636073907,1.65880982,2636.7,2636.2,4.18104]
[1729636074240,0.84841098,2637.2,2636.6,4.19677]
[1729636074241,3.4128,2637.2,2636.6,4.19677]
[1729636074419,1.65880982,2637.1,2636.6,4.27261655]
[1729636074714,1.65880982,2637.1,2636.6,5.21047412]
[1729636075095,5.07170982,2637.1,2636.6,5.21047412]
[1729636075281,3.4128,2637.2,2636.6,5.21047412]
[1729636075282,5.07178982,2637.0,2636.6,1.79700412]
[1729636076598,1.65880982,2637.0,2636.6,1.79700412]
[1729636076921,1.65880982,2637.0,2636.6,5.21045412]
[1729636077081,1.65880982,2637.0,2636.7,0.9416129]
[1729636081209,5.07179982,2637.0,2636.7,0.9416129]
[1729636081413,5.07179982,2637.0,2636.6,0.7833]
[1729636092650,3.41299,2637.0,2636.6,0.7833]
[1729636093151,5.07179982,2637.0,2636.6,0.7833]
[1729636094248,5.07165982,2637.1,2636.6,4.27260689]
[1729636094441,5.07165982,2637.1,2636.6,4.94138147]
[1729636095607,5.07165982,2637.1,2636.6,4.86553458]
[1729636096527,5.07165982,2637.1,2636.6,4.94138151]
[1729636097030,3.41267,2637.3,2636.7,4.17178]
[1729636097216,1.65880982,2637.2,2636.7,4.17178]
[1729636097419,1.65880982,2637.1,2636.7,5.24227492]
[1729636098619,1.65880982,2637.2,2636.7,5.24227492]
[1729636099352,1.65880982,2637.1,2636.7,5.24227492]
[1729636100205,5.07153982,2637.2,2636.7,5.24227492]
[1729636102152,5.07153982,2637.2,2636.8,0.7585]
[1729636104147,1.65880982,2637.1,2636.8,0.7585]
[1729636105326,5.07165982,2637.1,2636.8,0.7585]
[1729636107459,3.41285,2637.1,2636.8,0.7585]
[1729636111235,5.07165982,2637.1,2636.8,0.7585]
[1729636111429,3.41285,2637.1,2636.8,0.7585]
[1729636113855,5.07165982,2637.1,2636.8,0.7585]
[1729636114654,3.41285,2637.1,2636.8,0.7585]
[1729636118526,3.41285,2637.1,2636.8,1.55062484]
[1729636120568,3.41261,2637.3,2636.8,1.55062484]
[1729636120739,0.8119,2637.4,2637.1,1.54262484]
[1729636120740,3.41245,2637.4,2637.1,1.54262484]
[1729636120940,5.07125982,2637.4,2637.1,1.54262484]
[1729636121137,5.07125982,2637.4,2637.1,0.7505]
[1729636121373,5.07145982,2637.3,2637.1,0.7505]
[1729636121575,3.41265,2637.3,2637.1,0.7505]
[1729636123376,5.07125982,2637.4,2637.1,0.7505]
[1729636125176,3.41245,2637.4,2637.1,0.7505]
[1729636126008,5.07125982,2637.4,2637.1,0.7505]
[1729636126594,3.41245,2637.4,2637.1,0.7505]
[1729636126980,5.07125982,2637.4,2637.1,0.7505]
[1729636127611,3.41245,2637.4,2637.1,0.7505]
[1729636130183,5.07125982,2637.4,2637.1,0.7505]
[1729636130685,3.41245,2637.4,2637.1,0.7505]
[1729636134108,5.07113982,2637.5,2637.1,0.7505]
[1729636135479,1.65880982,2637.4,2637.1,0.7505]
[1729636139812,5.07127982,2637.4,2637.1,0.7505]
[1729636142219,3.41247,2637.4,2637.1,0.7505]
[1729636142420,5.07127982,2637.4,2637.1,0.7505]
[1729636151654,3.41247,2637.4,2637.1,0.7505]
[1729636154022,5.07127982,2637.4,2637.1,0.7505]
[1729636154230,1.65880982,2637.3,2637.1,0.7505]
[1729636154437,5.07127982,2637.4,2637.1,0.7505]
[1729636155321,5.07151982,2637.2,2636.9,1.58112484]
[1729636155563,3.41284,2637.1,2636.9,0.789]
[1729636155780,4.20464,2637.4,2636.9,1.58112484]
[1729636156071,3.41273,2637.2,2636.9,1.58112484]
[1729636156272,6.82551,2637.2,2636.9,1.58112484]
[1729636156477,3.41273,2637.2,2636.9,1.58112484]
[1729636156672,6.82551,2637.2,2636.9,0.789]
[1729636156861,3.41273,2637.2,2636.9,0.789]
[1729636157040,5.07153982,2637.2,2636.9,0.789]
[1729636159978,5.07153982,2637.2,2636.9,1.58112484]
[1729636160134,5.07153982,2637.2,2636.9,0.789]
[1729636161143,5.07153982,2637.2,2636.9,1.58112484]
[1729636161575,5.07153982,2637.2,2636.9,0.789]
[1729636162984,3.41273,2637.2,2636.9,0.789]
[1729636163944,5.07153982,2637.2,2636.9,0.789]
[1729636164344,5.07153982,2637.2,2636.9,0.79212484]
[1729636164590,1.65880982,2637.1,2636.8,0.79212484]
[1729636164752,5.07153982,2637.2,2636.8,0.79212484]
[1729636165084,5.07153982,2637.2,2636.9,0.79212484]
[1729636165385,5.07153982,2637.2,2636.8,0.79212484]
[1729636166581,1.65880982,2637.0,2636.9,0.79212484]
[1729636166768,5.85370982,2637.1,2636.8,0.79212484]
[1729636166971,4.1949,2637.1,2636.8,0.79212484]
[1729636167199,5.85370982,2637.1,2636.8,0.79212484]
[1729636167573,5.85370982,2637.1,2636.7,4.56142484]
[1729636168219,5.85370982,2637.1,2636.8,0.79212484]
[1729636169294,5.85370982,2637.1,2636.7,4.56142484]
[1729636170175,5.85370982,2637.1,2636.8,0.79212484]
[1729636170397,2.44080982,2637.1,2636.7,7.97474484]
[1729636170819,2.44080982,2637.1,2636.8,0.79212484]
[1729636171321,2.44080982,2637.1,2636.7,7.97474484]
[1729636171882,2.44080982,2637.1,2636.8,0.79212484]
[1729636173088,0.782,2637.1,2636.8,0.79212484]
[1729636173678,0.782,2637.1,2636.8,4.20534484]
[1729636178248,0.7984,2637.6,2637.1,3.41271]
[1729636178471,0.7984,2637.6,2637.2,4.22579]
[1729636178638,1.65880982,2637.7,2637.3,3.41257]
[1729636178999,1.65880982,2637.6,2637.3,3.41257]
[1729636181439,1.65880982,2637.6,2637.2,0.8132]
[1729636181643,1.65880982,2637.5,2637.2,0.8132]
[1729636182766,1.65880982,2637.4,2637.0,0.79212484]
[1729636183061,1.65880982,2637.3,2637.0,0.79212484]
[1729636183388,3.41245,2637.4,2636.9,5.01832484]
[1729636183389,1.65880982,2637.2,2636.9,5.01832484]
[1729636183760,1.65880982,2637.0,2636.9,1.60532484]
[1729636184077,1.65880982,2637.1,2636.8,0.79212484]
[1729636185250,1.65880982,2637.0,2636.8,0.79212484]
[1729636185984,1.65880982,2637.1,2636.8,0.79212484]
[1729636187147,5.86991982,2637.2,2636.8,0.79212484]
[1729636188496,5.86991982,2637.2,2636.9,0.79212484]
[1729636188791,5.86991982,2637.2,2636.8,0.79212484]
[1729636190086,1.65880982,2637.1,2636.8,0.79212484]
[1729636193174,5.86991982,2637.2,2636.8,0.79212484]
[1729636193377,5.86991982,2637.2,2636.8,4.20534484]
[1729636195343,2.45720982,2637.2,2636.8,4.20534484]
[1729636196985,0.7984,2637.2,2636.8,4.20534484]
[1729636197191,5.07138982,2637.3,2636.9,0.79212484]
[1729636200155,1.65880982,2637.3,2637.0,0.8197]
[1729636203901,1.65880982,2637.3,2637.0,1.61182484]
[1729636204407,1.65880982,2637.3,2637.0,0.8197]
[1729636207805,5.84463982,2637.4,2637.0,0.8197]
[1729636210413,5.84463982,2637.4,2637.0,1.61182484]
[1729636210729,5.84463982,2637.4,2637.0,0.8197]
[1729636211986,1.65880982,2637.2,2637.0,0.8197]
[1729636214529,5.07143982,2637.3,2637.0,0.8197]
[1729636215203,0.7969,2637.6,2637.1,0.7771]
[1729636215540,3.41188,2637.9,2637.4,4.18954]
[1729636215745,5.07074982,2637.8,2637.4,1.56922484]
[1729636215928,1.65880982,2637.5,2637.3,0.79212484]
[1729636216109,1.65880982,2637.5,2637.2,1.18818727]
[1729636216110,1.65880982,2637.5,2637.2,1.56922484]
[1729636216309,1.65880982,2637.5,2637.2,4.98191484]
[1729636216550,1.65880982,2637.6,2637.2,4.98191484]
[1729636216839,5.07099982,2637.6,2637.2,4.98191484]
[1729636216993,5.07099982,2637.6,2637.2,6.07149993]
[1729636217198,1.65880982,2637.3,2637.2,0.79212484]
[1729636217433,1.65880982,2637.3,2637.0,4.56762484]
[1729636217902,1.65880982,2637.4,2637.0,4.56762484]
[1729636218497,1.65880982,2637.4,2637.1,0.79212484]
[1729636218912,5.07112982,2637.5,2637.1,0.79212484]
[1729636222462,5.07112982,2637.5,2637.1,1.17162484]
[1729636222619,5.07112982,2637.5,2637.1,0.79212484]
[1729636224331,1.65880982,2637.5,2637.1,0.79212484]
[1729636224528,1.65880982,2637.5,2637.1,5.12183405]
[1729636224731,5.07100982,2637.6,2637.2,0.7755]
[1729636224955,1.65880982,2637.6,2637.2,4.1882]
[1729636225168,1.65880982,2637.6,2637.2,1.56762484]
[1729636228864,1.65880982,2637.6,2637.2,4.98026484]
[1729636229172,1.65880982,2637.6,2637.2,6.36966812]
[1729636229697,1.65880982,2637.7,2637.3,3.41254]
[1729636230258,1.65880982,2637.7,2637.2,6.36966812]
[1729636230485,1.65880982,2637.7,2637.2,9.78228812]
[1729636230686,5.07074982,2637.8,2637.4,0.7755]
[1729636230845,1.65880982,2637.7,2637.4,0.7755]
[1729636231051,1.65880982,2637.7,2637.4,1.75371681]
[1729636231388,1.65880982,2637.8,2637.4,5.16616681]
[1729636232093,1.65880982,2637.7,2637.4,5.16616681]
[1729636232325,1.65880982,2637.8,2637.4,5.16616681]
[1729636233228,5.07069982,2637.9,2637.4,5.16616681]
[1729636233523,5.07069982,2637.9,2637.5,0.60341187]
[1729636235680,1.65880982,2637.9,2637.5,4.01566187]
[1729636235842,8.48208982,2638.1,2637.7,0.7964]
[1729636236041,1.65880982,2638.0,2637.8,0.420857]
[1729636236255,1.65880982,2638.0,2637.7,0.7964]
[1729636237846,5.07042982,2638.1,2637.7,0.7964]
[1729636239271,1.65880982,2638.0,2637.7,0.7964]
[1729636242259,3.41126,2638.4,2638.0,0.7964]
[1729636242470,2.42560982,2638.6,2638.0,0.7964]
[1729636242471,1.65880982,2638.2,2638.0,0.7964]
[1729636242681,3.41154,2638.2,2638.0,0.7964]
[1729636242846,1.65880982,2638.1,2638.0,0.7964]